fUST/lending_fUST_20240311
["ID","MTS","AMOUNT","RATE_DAILY","PERIOD"]
[318248232,1710135170098,2520.10644869,0.0002,5]
[318248235,1710135818634,-483.76413655,0.0002,5]
[318248236,1710135818746,-687.23586345,0.00024,10]
[318248237,1710135818880,-5000.0,0.00023898,7]
[318248318,1710136233020,-1117.7484,0.0001995,2]
[318248320,1710136233029,-155.14583709,0.0001995,2]
[318248322,1710136233038,-669.3132951,0.00019951,2]
[318248324,1710136233047,-269.23239559,0.00019952,2]
[318248326,1710136233056,-293.32134265,0.00021798,2]
[318248328,1710136233065,-263.0,0.00022,2]
[318248329,1710136233074,-263.0,0.00022192,2]
[318248331,1710136233083,-263.0,0.00023014,2]
[318248333,1710136233092,-8219.83232691,0.000238,2]
[318248335,1710136233102,-153.8604924,0.000238,2]
[318248338,1710136233112,-221.6832135,0.000238,2]
[318248339,1710136233123,-153.0,0.000238,2]
[318248341,1710136233133,-395.69469991,0.00023898,2]
[318248343,1710136233143,-3003.87058524,0.00023898,5]
[318248345,1710136233152,-196.07210742,0.00023898,2]
[318248347,1710136233161,-15940.55420781,0.00023899,2]
[318248349,1710136233170,-620.94125045,0.0002391,2]
[318248351,1710136233179,-1009.45633079,0.00023973,2]
[318248353,1710136233188,-500.0,0.00023973,2]
[318248355,1710136233197,-8245.70720381,0.00023974,2]
[318248357,1710136233206,-927.97428513,0.00023998,2]
[318248359,1710136233215,-3941.1412537,0.00023998,2]
[318248361,1710136233224,-188.44397178,0.00023998,2]
[318248363,1710136233234,-1983.06430416,0.00023999,2]
[318248365,1710136233243,-500.0,0.00023999,2]
[318248367,1710136233252,-622.70748921,0.00023999,2]
[318248370,1710136233262,-500.0,0.00023999,2]
[318248371,1710136233271,-439.10804501,0.00023999,2]
[318248373,1710136233280,-500.0,0.00023999,2]
[318248375,1710136233289,-500.0,0.00023999,2]
[318248377,1710136233298,-500.0,0.00023999,2]
[318248379,1710136233306,-500.0,0.00023999,2]
[318248381,1710136233315,-500.0,0.00023999,2]
[318248383,1710136233324,-230.97742246,0.00023999,2]
[318248385,1710136233334,-500.0,0.00023999,2]
[318248387,1710136233343,-500.0,0.00023999,2]
[318248390,1710136233352,-500.0,0.00023999,2]
[318248391,1710136233361,-500.0,0.00023999,2]
[318248394,1710136233370,-500.0,0.00023999,2]
[318248396,1710136233379,-500.0,0.00023999,2]
[318248398,1710136233388,-500.0,0.00023999,2]
[318248399,1710136233397,-589.87083125,0.00023999,2]
[318248401,1710136233406,-518.25930493,0.00023999,2]
[318248403,1710136233416,-500.0,0.00023999,2]
[318248405,1710136233425,-500.0,0.00023999,2]
[318248408,1710136233434,-254.94939582,0.00023999,2]
[318248410,1710136233444,-500.0,0.00023999,2]
[318248412,1710136233453,-257.84622724,0.00023999,2]
[318248413,1710136233462,-500.0,0.00023999,2]
[318248416,1710136233472,-500.0,0.00023999,2]
[318248417,1710136233481,-519.70118632,0.00023999,2]
[318248419,1710136233490,-500.0,0.00023999,2]
[318248420,1710136233500,-500.0,0.00023999,2]
[318248422,1710136233509,-500.0,0.00023999,2]
[318248424,1710136233518,-500.0,0.00023999,2]
[318248426,1710136233527,-500.0,0.00023999,2]
[318248428,1710136233536,-500.0,0.00023999,2]
[318248430,1710136233545,-500.0,0.00023999,2]
[318248432,1710136233554,-500.0,0.00023999,2]
[318248434,1710136233563,-500.0,0.00023999,2]
[318248436,1710136233573,-551.28,0.00023999,2]
[318248438,1710136233582,-500.0,0.00023999,2]
[318248440,1710136233592,-500.0,0.00023999,2]
[318248442,1710136233601,-500.0,0.00023999,2]
[318248444,1710136233613,-51593.64948246,0.00024,10]
[318248810,1710136240544,-1653.86426022,0.00024,10]
[318248847,1710136243792,-7929.03,0.00024,10]
[318248860,1710136246675,-669.3132951,0.00023999,2]
[318248861,1710136246685,-58.94154324,0.00023999,2]
[318248862,1710136246736,-96.20429385,0.00023999,2]
[318248863,1710136246747,-123811.3239992,0.00024,10]
[318248873,1710136505336,-687.15449188,0.00024,10]
[318248874,1710136505396,-312.84550812,0.00023998,7]
[318248880,1710137267491,797.76,0.000163,2]
[318248902,1710137432742,-155.13962566,0.00019233,2]
[318248903,1710137432752,-931.457,0.00019234,2]
[318248904,1710137432762,-269.23239559,0.00019234,2]
[318248905,1710137432771,-928.63688525,0.00019235,2]
[318248906,1710137432780,-277.8244212,0.00019238,2]
[318248907,1710137432789,-306.275056,0.0001934,2]
[318248908,1710137432798,-191.564257,0.00019467,2]
[318248909,1710137432808,-364.0203593,0.00019789,2]
[318248910,1710137432820,-2058.1565184,0.00019789,2]
[318248911,1710137432829,-182.44576648,0.00019798,2]
[318249458,1710137439130,-1010.75630152,0.00019798,2]
[318249459,1710137439139,-283.0,0.0002,2]
[318249460,1710137439148,-1572.73540085,0.00020297,2]
[318249461,1710137439159,-1843.52737132,0.00020297,2]
[318249462,1710137439171,-2927.02488157,0.00020297,2]
[318249469,1710137440742,-16676.48932966,0.00020297,2]
[318249470,1710137440751,-160.806833,0.00020316,2]
[318249471,1710137440761,-407.1781517,0.00020415,2]
[318249472,1710137440771,-313.9370196,0.0002107,2]
[318249473,1710137440781,-1696.08866604,0.00021187,2]
[318249474,1710137440793,-1303.91133396,0.00021187,2]
[318249475,1710137440802,-177.2591895,0.00021542,2]
[318249476,1710137440815,-186.9741541,0.00021797,2]
[318249477,1710137440825,-339.31934896,0.000219,2]
[318249478,1710137440834,-272.0,0.00022,2]
[318249479,1710137440843,-191.564257,0.0002212,2]
[318249480,1710137440852,-272.0,0.00022192,2]
[318249481,1710137440861,-1500.0,0.00022219,2]
[318249482,1710137440871,-1225.52319184,0.00022838,2]
[318249483,1710137440882,-274.47680816,0.00022838,2]
[318249484,1710137440891,-330.7851919,0.00022903,2]
[318249485,1710137440903,-697.75094641,0.00022903,2]
[318249487,1710137440912,-283.6321141,0.00022903,2]
[318249488,1710137440921,-218.83,0.00022999,2]
[318249489,1710137440931,-218.83,0.00022999,2]
[318249490,1710137440941,-218.83,0.00022999,2]
[318249491,1710137440950,-218.83,0.00022999,2]
[318249492,1710137440959,-218.83,0.00022999,2]
[318249493,1710137440967,-218.83,0.00022999,2]
[318249494,1710137440976,-218.83,0.00022999,2]
[318249495,1710137440984,-218.83,0.00022999,2]
[318249496,1710137440994,-218.83,0.00022999,2]
[318249497,1710137441003,-81.23294135,0.00022999,2]
[318249547,1710137443807,-137.59705865,0.00022999,2]
[318249549,1710137443818,-256.60350745,0.00022999,2]
[318249550,1710137443828,-6915.7994339,0.00023,5]
[318249551,1710137443839,-5782.87407027,0.00023,5]
[318249552,1710137443851,-3085.10868268,0.00023,5]
[318249556,1710137448358,-197.02843048,0.00022998,2]
[318249557,1710137448367,-852.87262269,0.00022998,2]
[318249962,1710138632067,-520.0,0.00020695,2]
[318250544,1710138637939,-411.457,0.00020695,2]
[318250546,1710138637948,-21.39947337,0.00020696,2]
[318250549,1710138637965,-247.83292222,0.00020696,2]
[318250551,1710138637974,-3434.59942362,0.00020697,2]
[318250553,1710138637983,-7048.04888694,0.00020798,2]
[318250555,1710138637993,-226.2128993,0.000209,2]
[318250557,1710138638004,-270.713257,0.00021437,2]
[318250559,1710138638013,-204.0,0.00022,2]
[318250561,1710138638023,-204.0,0.00022192,2]
[318250563,1710138638032,-1500.0,0.00022388,2]
[318250565,1710138638041,-401.7467112,0.000224,2]
[318250567,1710138638051,-153.0,0.000224,2]
[318250569,1710138638060,-311.619027,0.00022782,2]
[318250571,1710138638069,-1235.96837706,0.000229,2]
[318250574,1710138638080,-2126.98666319,0.000229,2]
[318250576,1710138638095,-2124.26173748,0.000229,2]
[318250742,1710138639982,-2556.09658286,0.000229,2]
[318250744,1710138639995,-11369.76086287,0.000229,2]
[318250746,1710138640004,-199.18235522,0.000229,2]
[318250748,1710138640014,-66.01059142,0.00022998,2]
[318250750,1710138640024,-3003.87058524,0.00022998,10]
[318250752,1710138640034,-155.33039691,0.00022998,2]
[318250754,1710138640044,-241.91033495,0.00022999,2]
[318250756,1710138640053,-500.0,0.00022999,2]
[318250758,1710138640063,-500.0,0.00022999,2]
[318250760,1710138640073,-500.0,0.00022999,2]
[318250762,1710138640082,-500.0,0.00022999,2]
[318250764,1710138640092,-500.0,0.00022999,2]
[318250766,1710138640101,-13334.17820979,0.00023,5]
[318250977,1710138642944,-18769.3276821,0.00022003,2]
[318250979,1710138642953,-29230.6723179,0.00023,5]
[318250981,1710138642965,-19361.18040234,0.00023,5]
[318251351,1710138647029,-44228.78068019,0.00023,5]
[318251522,1710139832170,-325.90517914,0.00020034,2]
[318251524,1710139832182,-485.289097,0.00020035,2]
[318251525,1710139832193,-110.82099953,0.00020035,2]
[318251555,1710139840103,-528.65725796,0.000189,2]
[318251556,1710139840113,-155.13807288,0.00020033,2]
[318251557,1710139840123,-587.07757195,0.00020033,2]
[318251598,1710139843612,-597.20884474,0.00020032,2]
[318251601,1710139843626,-148.83442139,0.00020032,2]
[318251603,1710139843636,-155.99696445,0.00020032,2]
[318251605,1710139843646,-887.61469296,0.00020033,2]
[318251607,1710139843656,-558.49229557,0.00020035,2]
[318251609,1710139843668,-188.50655472,0.00020036,2]
[318251612,1710139843678,-166.666666,0.0002005,2]
[318251614,1710139843688,-84.81973242,0.00020412,2]
[318251870,1710139846305,-269.23239559,0.00018899,2]
[318251872,1710139846316,-1486.49237043,0.00020412,2]
[318251875,1710139846370,-21379.75662325,0.00020412,2]
[318251876,1710139846381,-270.713257,0.00020415,2]
[318251877,1710139846391,-165.393169,0.00021237,2]
[318251878,1710139846401,-1500.0,0.00021825,2]
[318251879,1710139846414,-341.0,0.00022,2]
[318251880,1710139846426,-157.40923001,0.00022191,2]
[318251881,1710139846436,-341.0,0.00022192,2]
[318251884,1710139846446,-197.04010283,0.0002285,2]
[318251887,1710139846460,-33201.6486498,0.000229,2]
[318251889,1710139846470,-1500.0,0.0002295,2]
[318251891,1710139846480,-202.57620845,0.00022989,2]
[318251893,1710139846489,-500.0,0.00022989,2]
[318251895,1710139846500,-500.0,0.00022989,2]
[318251897,1710139846510,-264.29675335,0.00022989,2]
[318251899,1710139846520,-500.0,0.00022989,2]
[318251901,1710139846531,-500.0,0.00022989,2]
[318251903,1710139846541,-503.06796179,0.00022989,2]
[318251905,1710139846551,-500.0,0.00022989,2]
[318251907,1710139846561,-460.94723691,0.00022989,2]
[318251910,1710139846571,-15000.0,0.0002299,4]
[318251912,1710139846582,-238.88134012,0.00022998,2]
[318251914,1710139846593,-3192.01289202,0.00022998,2]
[318251916,1710139846604,-155.15204901,0.00022998,2]
[318251918,1710139846615,-230.59298877,0.00022998,2]
[318251920,1710139846626,-793.96882046,0.00022998,2]
[318251922,1710139846636,-400.0,0.00022998,2]
[318251925,1710139846647,-290.48375637,0.00022998,2]
[318251927,1710139846658,-524.39336891,0.00022998,2]
[318251929,1710139846671,-308.78762701,0.00022999,2]
[318251932,1710139846681,-1625.34050705,0.00023,5]
[318251935,1710139846695,-147628.44503675,0.00023,5]
[318251968,1710140073108,403.8529368,0.0001968,10]
[318252103,1710141033846,-931.457,0.00019683,2]
[318252104,1710141033857,-269.23239559,0.00019684,2]
[318252105,1710141033868,-292.434051,0.00019685,2]
[318252106,1710141033879,-607.64905388,0.0002,2]
[318252107,1710141033889,-155.14273131,0.00020156,2]
[318252108,1710141033899,-669.3132951,0.00020201,2]
[318252109,1710141033911,-1581.02589393,0.00020205,2]
[318252110,1710141033922,-186.99132219,0.00020206,2]
[318252111,1710141033932,-2260.1827494,0.00020721,2]
[318252112,1710141033946,-6891.84612,0.00020721,2]
[318252113,1710141033959,-350.27827383,0.00020721,2]
[318252142,1710141038953,-6598.07419791,0.00020721,2]
[318252143,1710141038967,-8789.61865886,0.00020721,2]
[318252144,1710141038978,-182.47872633,0.000208,2]
[318252145,1710141038989,-352.43817198,0.000209,2]
[318252146,1710141039001,-1500.0,0.00021043,2]
[318252147,1710141039012,-1500.0,0.00021476,2]
[318252148,1710141039022,-182.47872633,0.00021833,2]
[318252149,1710141039035,-184.21140064,0.00021848,2]
[318252150,1710141039047,-1500.0,0.0002191,2]
[318252151,1710141039066,-4886.37042435,0.00022,2]
[318252152,1710141039078,-339.0,0.00022,2]
[318252153,1710141039090,-339.0,0.00022192,2]
[318252154,1710141039102,-1500.0,0.00022343,2]
[318252155,1710141039115,-365.36024899,0.00022698,7]
[318252197,1710141042267,-1216.22381485,0.00022698,7]
[318252198,1710141042277,-236.15536037,0.00022737,2]
[318252199,1710141042287,-151.0,0.00022738,2]
[318252200,1710141042297,-151.0,0.00022738,2]
[318252201,1710141042312,-151.0,0.00022738,2]
[318252202,1710141042322,-253.68897254,0.00022738,2]
[318252203,1710141042331,-500.0,0.00022738,2]
[318252204,1710141042341,-500.0,0.00022738,2]
[318252205,1710141042351,-500.0,0.00022738,2]
[318252207,1710141042360,-500.0,0.00022738,2]
[318252208,1710141042370,-271.99094294,0.00022738,2]
[318252209,1710141042380,-500.0,0.00022738,2]
[318252210,1710141042389,-159.49883185,0.00022738,2]
[318252211,1710141042399,-500.0,0.00022738,2]
[318252212,1710141042410,-500.0,0.00022738,2]
[318252213,1710141042420,-356.81555806,0.00022738,2]
[318252214,1710141042433,-143.18444194,0.00022738,2]
[318252215,1710141042443,-500.0,0.00022738,2]
[318252216,1710141042453,-500.0,0.00022738,2]
[318252217,1710141042463,-500.0,0.00022738,2]
[318252218,1710141042473,-500.0,0.00022738,2]
[318252219,1710141042483,-185.55753171,0.00022738,2]
[318252220,1710141042495,-314.44246829,0.00022738,2]
[318252221,1710141042506,-500.0,0.00022738,2]
[318252222,1710141042516,-500.0,0.00022738,2]
[318252223,1710141042525,-500.0,0.00022738,2]
[318252224,1710141042535,-610.39615451,0.00022738,2]
[318252225,1710141042545,-500.0,0.00022738,2]
[318252226,1710141042559,-500.0,0.00022738,2]
[318252227,1710141042569,-500.0,0.00022738,2]
[318252228,1710141042578,-151.0,0.00022738,2]
[318252229,1710141042588,-17012.15577741,0.00022739,2]
[318252230,1710141042599,-4609.24864237,0.00022739,2]
[318252263,1710141043748,-360.57414192,0.000199,2]
[318252265,1710141043758,-155.11944197,0.0002072,2]
[318252266,1710141043767,-3736.12298366,0.00022739,2]
[318252306,1710141049349,-4505.43696843,0.00022739,2]
[318252307,1710141049362,-75971.29875255,0.00022739,2]
[318252308,1710141049372,-1500.0,0.00022776,2]
[318252309,1710141049382,-182.47872633,0.00022867,2]
[318252310,1710141049392,-80353.82491397,0.000229,2]
[318252311,1710141049402,-160.36024117,0.000229,2]
[318252312,1710141049412,-427.93501367,0.00022903,2]
[318252313,1710141049422,-8293.66791683,0.0002299,3]
[318252314,1710141049435,-53406.20208317,0.0002299,3]
[318252315,1710141049445,-249.719753,0.0002299,2]
[318252316,1710141049455,-249.719753,0.0002299,2]
[318252317,1710141049466,-188.38138884,0.00022998,2]
[318252318,1710141049477,-731.36468124,0.00022998,2]
[318252319,1710141049487,-157.2386198,0.00022998,2]
[318252320,1710141049497,-1473.40804668,0.00022998,2]
[318252321,1710141049508,-155.77914763,0.00022998,2]
[318252322,1710141049518,-2691.83251717,0.00022998,2]
[318252323,1710141049528,-155.15515516,0.00022998,2]
[318252324,1710141049540,-4539.53443305,0.00022998,2]
[318252325,1710141049551,-238.57992796,0.00022998,2]
[318252326,1710141049570,-703.84232715,0.00022998,2]
[318252327,1710141049581,-4185.11997358,0.00022998,2]
[318252328,1710141049592,-178.76607856,0.00022998,2]
[318252329,1710141049603,-190.25636638,0.00022998,2]
[318252330,1710141049615,-429.03125533,0.00022998,2]
[318252331,1710141049627,-225.64566837,0.00022998,2]
[318252332,1710141049638,-1170.39582157,0.00022998,2]
[318252333,1710141049650,-928.63688525,0.00022998,2]
[318252334,1710141049661,-485.289097,0.00022998,2]
[318252335,1710141049671,-155.36909935,0.00022999,2]
[318252336,1710141049682,-11487.97908157,0.00022999,2]
[318252337,1710141049693,-249.719753,0.00022999,2]
[318252338,1710141049704,-249.719753,0.00022999,2]
[318252339,1710141049714,-1743.64,0.00022999,2]
[318252340,1710141049724,-1743.64,0.00022999,2]
[318252341,1710141049734,-1743.64,0.00022999,2]
[318252342,1710141049744,-1743.64,0.00022999,2]
[318252343,1710141049754,-42399.16529002,0.00023,5]
[318252367,1710141950799,10000.0,0.000163,2]
[318252368,1710141966571,1389.63,0.000163,2]
[318252369,1710141972318,160.39636044,0.00016299,2]
[318252492,1710142233462,-24900.0,0.0001863,2]
[318252494,1710142233472,-191.57920346,0.00018661,2]
[318252496,1710142233481,-331.31385227,0.00018662,2]
[318252497,1710142233492,-212.08309675,0.00018662,2]
[318252499,1710142233502,-485.289097,0.00018662,2]
[318252500,1710142233512,-269.23239559,0.00018662,2]
[318252502,1710142233523,-155.14273131,0.00018663,2]
[318252503,1710142233534,-155.15515516,0.00018668,2]
[318252504,1710142233544,-8533.4610328,0.00018741,2]
[318252506,1710142233554,-160.39636044,0.00019179,2]
[318252508,1710142233564,-402.669414,0.0001918,2]
[318252510,1710142233574,-7448.587875,0.0001968,2]
[318252512,1710142233585,-370.81212502,0.0001968,2]
[318252513,1710142233596,-2527.41602931,0.000201,5]
[318252516,1710142233608,-185.101919,0.00020257,2]
[318252517,1710142233619,-182.47872633,0.000204,2]
[318252519,1710142233628,-364.0203593,0.00020773,2]
[318252521,1710142233639,-240.38276128,0.000209,2]
[318252523,1710142233650,-2000.0,0.00021103,2]
[318252526,1710142233660,-2000.0,0.00021505,2]
[318252527,1710142233671,-2000.0,0.00021908,2]
[318252529,1710142233681,-255.0,0.00022,2]
[318252531,1710142233691,-255.0,0.00022192,2]
[318252533,1710142233702,-2000.0,0.0002231,2]
[318252535,1710142233712,-2000.0,0.00022713,2]
[318252537,1710142233721,-620.51758865,0.00022732,2]
[318252539,1710142233731,-152.83393345,0.00022903,2]
[318252541,1710142233742,-1000.0,0.00022903,7]
[318252543,1710142233751,-607.53034533,0.00022998,2]
[318252545,1710142233761,-155.17533885,0.00022998,2]
[318252547,1710142233771,-524.47552081,0.00022998,2]
[318252549,1710142233781,-180.29283367,0.00022998,2]
[318252551,1710142233790,-338.3187743,0.00022999,2]
[318252553,1710142233799,-927.20229121,0.00022999,2]
[318252555,1710142233807,-500.0,0.00022999,2]
[318252557,1710142233817,-456.71068384,0.00022999,2]
[318252559,1710142233826,-16059.59078387,0.00023,5]
[318252562,1710142233838,-20477.17080316,0.00023,5]
[318253034,1710142238890,-701065.84721862,0.00023,5]
[318253036,1710142238902,-184819.86364569,0.00023,5]
[318253038,1710142238914,-22260.258074,0.00023,5]
[318253045,1710142238970,-35572.05986216,0.00023,5]
[318253048,1710142238984,-4548.54775219,0.00023,5]
[318253255,1710142240646,-181.870751,0.00021867,2]
[318253258,1710142240660,-40175.477779,0.00023,5]
[318253558,1710142243656,-13984.85622395,0.00023,5]
[318253560,1710142243669,-2106.53187145,0.00023,5]
[318254148,1710142248674,-268.34332547,0.000209,2]
[318254151,1710142248684,-268.67524242,0.00022999,2]
[318254156,1710142248693,-1432.98143211,0.00023,5]
[318254179,1710142248808,-1477.92010436,0.00023,5]
[318254182,1710142248820,-927.20229121,0.00023,5]
[318254185,1710142248832,-21166.5,0.00023,5]
[318254188,1710142248844,-3615.0,0.00023,5]
[318254192,1710142248857,-911579.83494278,0.00023,5]
[318254195,1710142248867,-21907.00093652,0.00023,10]
[318254198,1710142248878,-3003.87058524,0.00023,10]
[318254201,1710142248888,-155.19427519,0.00023,2]
[318254203,1710142248898,-395.69469991,0.00023,2]
[318254206,1710142248908,-1500.95503508,0.00023,2]
[318254209,1710142248918,-1983.06430416,0.00023,2]
[318254212,1710142248928,-155.12222845,0.00023,2]
[318254216,1710142248937,-2000.0,0.00023,2]
[318254218,1710142248947,-255.0,0.00023014,2]
[318254220,1710142248957,-2000.0,0.00023116,2]
[318254222,1710142248967,-2000.0,0.00023518,2]
[318254224,1710142248976,-500.0,0.00023561,2]
[318254226,1710142248985,-500.0,0.00023561,2]
[318254228,1710142248995,-500.0,0.00023561,2]
[318254230,1710142249006,-500.0,0.00023561,2]
[318254232,1710142249015,-500.0,0.00023561,2]
[318254233,1710142249025,-500.0,0.00023561,2]
[318254234,1710142249034,-500.0,0.00023561,2]
[318254235,1710142249043,-500.0,0.00023561,2]
[318254237,1710142249053,-500.0,0.00023561,2]
[318254239,1710142249062,-434.15072618,0.00023561,2]
[318254241,1710142249071,-500.0,0.00023561,2]
[318254244,1710142249080,-500.0,0.00023561,2]
[318254247,1710142249089,-500.0,0.00023561,2]
[318254250,1710142249098,-529.94934446,0.00023561,2]
[318254253,1710142249107,-500.42930334,0.00023561,2]
[318254256,1710142249116,-623.04547743,0.00023561,2]
[318254258,1710142249126,-500.0,0.00023561,2]
[318254262,1710142249135,-500.0,0.00023561,2]
[318254264,1710142249144,-500.0,0.00023561,2]
[318254267,1710142249154,-500.0,0.00023561,2]
[318254270,1710142249163,-500.0,0.00023561,2]
[318254273,1710142249172,-627.66410724,0.00023561,2]
[318254276,1710142249180,-155.17211748,0.00023561,2]
[318254279,1710142249190,-500.0,0.00023561,2]
[318254281,1710142249199,-500.0,0.00023561,2]
[318254286,1710142249208,-500.0,0.00023561,2]
[318254287,1710142249218,-500.0,0.00023561,2]
[318254292,1710142249227,-307.75604662,0.00023561,2]
[318254293,1710142249236,-500.0,0.00023561,2]
[318254297,1710142249246,-502.05781219,0.00023561,2]
[318254300,1710142249257,-500.0,0.00023561,2]
[318254302,1710142249267,-500.0,0.00023561,2]
[318254306,1710142249276,-500.0,0.00023561,2]
[318254309,1710142249285,-364.37676058,0.00023561,2]
[318254312,1710142249294,-444.0738957,0.00023561,2]
[318254314,1710142249303,-500.0,0.00023561,2]
[318254317,1710142249312,-500.0,0.00023561,2]
[318254320,1710142249321,-500.0,0.00023561,2]
[318254323,1710142249330,-500.0,0.00023561,2]
[318254326,1710142249339,-500.0,0.00023561,2]
[318254329,1710142249348,-500.0,0.00023561,2]
[318254332,1710142249357,-503.54098187,0.00023561,2]
[318254335,1710142249366,-343.90137238,0.00023561,2]
[318254338,1710142249375,-500.0,0.00023561,2]
[318254341,1710142249385,-500.0,0.00023561,2]
[318254343,1710142249394,-500.0,0.00023561,2]
[318254345,1710142249403,-500.0,0.00023561,2]
[318254347,1710142249414,-500.0,0.00023561,2]
[318254349,1710142249423,-500.0,0.00023561,2]
[318254351,1710142249433,-500.0,0.00023561,2]
[318254353,1710142249442,-599.96333985,0.00023561,2]
[318254355,1710142249451,-502.7384217,0.00023561,2]
[318254357,1710142249461,-507.09509386,0.00023561,2]
[318254359,1710142249470,-506.69209963,0.00023561,2]
[318254361,1710142249479,-508.24921668,0.00023561,2]
[318254363,1710142249488,-500.0,0.00023561,2]
[318254365,1710142249497,-507.73271668,0.00023561,2]
[318254367,1710142249508,-500.0,0.00023561,2]
[318254369,1710142249518,-269.46486874,0.00023561,2]
[318254371,1710142249527,-505.28530502,0.00023561,2]
[318254374,1710142249537,-500.0,0.00023561,2]
[318254375,1710142249547,-504.48932751,0.00023561,2]
[318254377,1710142249556,-347.64784301,0.00023561,2]
[318254379,1710142249565,-500.0,0.00023561,2]
[318254381,1710142249574,-565.33071785,0.00023561,2]
[318254383,1710142249583,-500.0,0.00023561,2]
[318254385,1710142249592,-510.28944979,0.00023561,2]
[318254387,1710142249601,-400.00589841,0.00023561,2]
[318254389,1710142249610,-500.0,0.00023561,2]
[318254391,1710142249618,-509.65545001,0.00023561,2]
[318254392,1710142249627,-395.15078753,0.00023561,2]
[318254395,1710142249637,-248.33151953,0.00023561,2]
[318254396,1710142249646,-170.42110272,0.00023561,2]
[318254398,1710142249656,-501.53376125,0.00023561,2]
[318254400,1710142249665,-500.73386564,0.00023561,2]
[318254402,1710142249674,-500.0,0.00023561,2]
[318254404,1710142249684,-622.70748921,0.00023561,2]
[318254406,1710142249694,-500.0,0.00023561,2]
[318254409,1710142249704,-439.10804501,0.00023561,2]
[318254411,1710142249714,-278.18172989,0.00023561,2]
[318254413,1710142249724,-500.0,0.00023561,2]
[318254415,1710142249733,-230.97742246,0.00023561,2]
[318254417,1710142249743,-500.0,0.00023561,2]
[318254419,1710142249753,-500.0,0.00023561,2]
[318254421,1710142249762,-500.0,0.00023561,2]
[318254423,1710142249772,-500.0,0.00023561,2]
[318254424,1710142249781,-500.0,0.00023561,2]
[318254426,1710142249790,-502.5532779,0.00023561,2]
[318254428,1710142249799,-500.0,0.00023561,2]
[318254430,1710142249808,-155.83595579,0.00023561,2]
[318254433,1710142249818,-501.51686583,0.00023561,2]
[318254435,1710142249827,-500.0,0.00023561,2]
[318254437,1710142249838,-500.0,0.00023561,2]
[318254439,1710142249847,-500.0,0.00023561,2]
[318254441,1710142249858,-500.79526437,0.00023561,2]
[318254443,1710142249868,-500.0,0.00023561,2]
[318254445,1710142249877,-500.0,0.00023561,2]
[318254447,1710142249886,-500.0,0.00023561,2]
[318254449,1710142249895,-500.0,0.00023561,2]
[318254451,1710142249905,-500.0,0.00023561,2]
[318254453,1710142249915,-500.0,0.00023561,2]
[318254455,1710142249924,-500.0,0.00023561,2]
[318254457,1710142249933,-402.31810298,0.00023561,2]
[318254459,1710142249942,-500.0,0.00023561,2]
[318254461,1710142249951,-500.0,0.00023561,2]
[318254463,1710142249960,-500.0,0.00023561,2]
[318254465,1710142249970,-500.0,0.00023561,2]
[318254467,1710142249979,-500.0,0.00023561,2]
[318254469,1710142249989,-500.0,0.00023561,2]
[318254471,1710142249998,-500.0,0.00023561,2]
[318254473,1710142250010,-500.0,0.00023561,2]
[318254475,1710142250020,-500.0,0.00023561,2]
[318254477,1710142250030,-478.96,0.00023561,2]
[318254479,1710142250041,-501.43373043,0.00023561,2]
[318254481,1710142250050,-507.37542494,0.00023561,2]
[318254483,1710142250061,-515.42209116,0.00023561,2]
[318254485,1710142250071,-598.68191474,0.00023561,2]
[318254487,1710142250080,-500.0,0.00023561,2]
[318254489,1710142250090,-500.0,0.00023561,2]
[318254491,1710142250100,-500.0,0.00023561,2]
[318254493,1710142250109,-500.0,0.00023561,2]
[318254495,1710142250119,-500.0,0.00023561,2]